[Event "*** MasterClass Titled Tuesday Blitz"]
[Site "Chess.com"]
[Date "2017.10.03"]
[Round "6"]
[White "cheese111"]
[Black "Tarlev_Konstantin"]
[Result "0-1"]
[WhiteElo "2378"]
[BlackElo "2606"]
[TimeControl "180+2"]
[EndTime "14:24:23 PDT"]
[Termination "Tarlev_Konstantin won on time"]

1. e4 {[%clk 0:03:01.9]} 1... c5 {[%clk 0:03:00.4]} 2. Nf3 {[%clk 0:03:00.7]}
2... e6 {[%clk 0:03:01.6]} 3. g3 {[%clk 0:03:01.3]} 3... Nc6 {[%clk 0:03:01.5]}
4. Bg2 {[%clk 0:03:01.5]} 4... d6 {[%clk 0:02:54.6]} 5. O-O {[%clk 0:03:01.4]}
5... Nf6 {[%clk 0:02:56.2]} 6. Qe2 {[%clk 0:03:02.8]} 6... Be7 {[%clk
0:02:56.4]} 7. c3 {[%clk 0:03:04.1]} 7... e5 {[%clk 0:02:55.1]} 8. Rd1 {[%clk
0:02:59.3]} 8... O-O {[%clk 0:02:55.1]} 9. h3 {[%clk 0:02:55.9]} 9... b6 {[%clk
0:02:44.5]} 10. d4 {[%clk 0:02:55.6]} 10... Qc7 {[%clk 0:02:46]} 11. Na3 {[%clk
0:02:52.7]} 11... a6 {[%clk 0:02:42.3]} 12. Nc4 {[%clk 0:02:47.2]} 12... Re8
{[%clk 0:02:36.9]} 13. a4 {[%clk 0:02:25.6]} 13... Bb7 {[%clk 0:02:36]} 14. d5
{[%clk 0:02:14.9]} 14... Nb8 {[%clk 0:02:30.7]} 15. Nfxe5 {[%clk 0:02:12.2]}
15... b5 {[%clk 0:02:10.7]} 16. axb5 {[%clk 0:02:12.6]} 16... axb5 {[%clk
0:02:11.5]} 17. Rxa8 {[%clk 0:02:13.8]} 17... Bxa8 {[%clk 0:02:12.3]} 18. Na3
{[%clk 0:02:13.8]} 18... dxe5 {[%clk 0:02:08.2]} 19. d6 {[%clk 0:02:14.7]} 19...
Qb6 {[%clk 0:01:51.5]} 20. dxe7 {[%clk 0:02:14]} 20... Bc6 {[%clk 0:01:52.5]}
21. Be3 {[%clk 0:01:51.2]} 21... Nbd7 {[%clk 0:01:34.8]} 22. Nc2 {[%clk
0:01:12.9]} 22... Qb7 {[%clk 0:01:28.2]} 23. f3 {[%clk 0:01:07.7]} 23... Rxe7
{[%clk 0:01:28.2]} 24. b4 {[%clk 0:01:08.1]} 24... c4 {[%clk 0:01:27.2]} 25. Ra1
{[%clk 0:01:05]} 25... Re8 {[%clk 0:01:25.5]} 26. Ra7 {[%clk 0:01:03.9]} 26...
Qb8 {[%clk 0:01:25.9]} 27. g4 {[%clk 0:00:54.9]} 27... h6 {[%clk 0:01:25.6]} 28.
Qd2 {[%clk 0:00:48.9]} 28... Rd8 {[%clk 0:01:15.2]} 29. Qf2 {[%clk 0:00:49.7]}
29... Nf8 {[%clk 0:01:13.7]} 30. h4 {[%clk 0:00:38.2]} 30... Ne6 {[%clk
0:01:10]} 31. g5 {[%clk 0:00:33.9]} 31... hxg5 {[%clk 0:01:04.8]} 32. hxg5
{[%clk 0:00:35.8]} 32... Nh5 {[%clk 0:01:05.9]} 33. g6 {[%clk 0:00:35.3]} 33...
fxg6 {[%clk 0:00:57.5]} 34. Qh4 {[%clk 0:00:35.9]} 34... Rd7 {[%clk 0:00:38]}
35. Rxd7 {[%clk 0:00:14.1]} 35... Bxd7 {[%clk 0:00:37.8]} 36. Qe7 {[%clk
0:00:15.9]} 36... Qe8 {[%clk 0:00:35.5]} 37. Qd6 {[%clk 0:00:16.7]} 37... Nef4
{[%clk 0:00:34.7]} 38. Ne1 {[%clk 0:00:10.3]} 38... Kh7 {[%clk 0:00:34.3]} 39.
Bf2 {[%clk 0:00:08.8]} 39... Bh3 {[%clk 0:00:27.2]} 40. Bxh3 {[%clk 0:00:05.2]}
40... Nxh3+ {[%clk 0:00:28.1]} 41. Kf1 {[%clk 0:00:06.1]} 41... N3f4 {[%clk
0:00:25.8]} 42. Nc2 {[%clk 0:00:05.6]} 42... Qc8 {[%clk 0:00:23.1]} 43. Ne3
{[%clk 0:00:02.4]} 43... Qh3+ {[%clk 0:00:23.7]} 44. Ke1 {[%clk 0:00:03.9]}
44... Qxf3 {[%clk 0:00:24.9]} 45. Qd1 {[%clk 0:00:04.1]} 45... Nd3+ {[%clk
0:00:24.7]} 0-1

[Event "*** MasterClass Titled Tuesday Blitz"]
[Site "Chess.com"]
[Date "2017.10.03"]
[Round "6"]
[White "IMVoja"]
[Black "MatthewG-p4p"]
[Result "1/2-1/2"]
[WhiteElo "2407"]
[BlackElo "2579"]
[TimeControl "180+2"]
[EndTime "14:24:36 PDT"]
[Termination "Game drawn by repetition"]

1. Nf3 {[%clk 0:03:01.9]} 1... Nf6 {[%clk 0:03:00.3]} 2. d4 {[%clk 0:03:02]}
2... c5 {[%clk 0:02:58]} 3. c3 {[%clk 0:03:02]} 3... b6 {[%clk 0:02:58.3]} 4.
Bf4 {[%clk 0:03:00.1]} 4... Bb7 {[%clk 0:02:59.3]} 5. e3 {[%clk 0:03:01.3]} 5...
e6 {[%clk 0:03:00.5]} 6. Nbd2 {[%clk 0:03:02.2]} 6... Be7 {[%clk 0:03:01.7]} 7.
Bd3 {[%clk 0:03:02.7]} 7... O-O {[%clk 0:03:02.7]} 8. h3 {[%clk 0:03:03.6]} 8...
d6 {[%clk 0:03:03.9]} 9. O-O {[%clk 0:03:04.1]} 9... Nbd7 {[%clk 0:03:04.8]} 10.
Qe2 {[%clk 0:02:55]} 10... Qc7 {[%clk 0:03:05.6]} 11. a4 {[%clk 0:02:53]} 11...
Rfe8 {[%clk 0:02:56.4]} 12. Nc4 {[%clk 0:02:52.7]} 12... Bf8 {[%clk 0:02:56.1]}
13. e4 {[%clk 0:02:42.7]} 13... e5 {[%clk 0:02:55]} 14. dxe5 {[%clk 0:02:39.7]}
14... Nxe5 {[%clk 0:02:40.6]} 15. Nfxe5 {[%clk 0:02:38.6]} 15... dxe5 {[%clk
0:02:41.5]} 16. Bg5 {[%clk 0:02:33.4]} 16... Qc6 {[%clk 0:02:41]} 17. f3 {[%clk
0:02:23.6]} 17... Nh5 {[%clk 0:02:37.8]} 18. Kh2 {[%clk 0:02:01.5]} 18... Qg6
{[%clk 0:02:36.5]} 19. Qe3 {[%clk 0:01:49.6]} 19... h6 {[%clk 0:02:33.6]} 20.
Bh4 {[%clk 0:01:50.2]} 20... Nf4 {[%clk 0:02:29.6]} 21. Rf2 {[%clk 0:01:43.3]}
21... Qh5 {[%clk 0:02:03]} 22. Bg3 {[%clk 0:01:41.5]} 22... Rad8 {[%clk
0:02:04.5]} 23. Bf1 {[%clk 0:01:41.3]} 23... Ng6 {[%clk 0:01:54.5]} 24. Rd2
{[%clk 0:01:35.3]} 24... Rxd2 {[%clk 0:01:53.7]} 25. Qxd2 {[%clk 0:01:33.3]}
25... Bc6 {[%clk 0:01:54.4]} 26. Ne3 {[%clk 0:01:30.6]} 26... Be7 {[%clk
0:01:49.1]} 27. Nf5 {[%clk 0:01:17.8]} 27... Qg5 {[%clk 0:01:47.9]} 28. Nxe7+
{[%clk 0:01:08.9]} 28... Qxe7 {[%clk 0:01:47.9]} 29. b3 {[%clk 0:01:07.2]} 29...
Rd8 {[%clk 0:01:48]} 30. Qc2 {[%clk 0:01:07.4]} 30... Qd6 {[%clk 0:01:47.8]} 31.
Bc4 {[%clk 0:01:03.7]} 31... Qd2 {[%clk 0:01:42.2]} 32. Rc1 {[%clk 0:01:01.4]}
32... Kf8 {[%clk 0:01:42.1]} 33. Be1 {[%clk 0:00:57.6]} 33... Qf4+ {[%clk
0:01:33.1]} 34. Bg3 {[%clk 0:00:58.4]} 34... Qd2 {[%clk 0:01:33.2]} 35. Be1
{[%clk 0:00:58.7]} 35... Qxc2 {[%clk 0:01:34.5]} 36. Rxc2 {[%clk 0:00:59.5]}
36... Rd1 {[%clk 0:01:36]} 37. Bg3 {[%clk 0:00:59]} 37... Ke7 {[%clk 0:01:35.1]}
38. Be2 {[%clk 0:00:56.8]} 38... Rb1 {[%clk 0:01:35.6]} 39. Bc4 {[%clk
0:00:57.8]} 39... a6 {[%clk 0:01:10.4]} 40. Rd2 {[%clk 0:00:38.8]} 40... Rc1
{[%clk 0:01:07.4]} 41. Bxa6 {[%clk 0:00:34.2]} 41... Rxc3 {[%clk 0:01:07.8]} 42.
Bc4 {[%clk 0:00:35.2]} 42... Bxa4 {[%clk 0:01:02.9]} 43. Bxf7 {[%clk 0:00:30.7]}
43... Kxf7 {[%clk 0:01:04.8]} 44. bxa4 {[%clk 0:00:31.4]} 44... Rc4 {[%clk
0:00:56]} 45. Rd7+ {[%clk 0:00:31.1]} 45... Kg8 {[%clk 0:00:45.6]} 46. Rd6
{[%clk 0:00:29.8]} 46... Kf7 {[%clk 0:00:46.4]} 47. Rxb6 {[%clk 0:00:29.6]}
47... Rxa4 {[%clk 0:00:47.4]} 48. Rb7+ {[%clk 0:00:31]} 48... Kg8 {[%clk
0:00:48]} 49. Rb6 {[%clk 0:00:30.4]} 49... Kf7 {[%clk 0:00:43.4]} 50. Rb7+
{[%clk 0:00:31]} 50... Kg8 {[%clk 0:00:44.5]} 51. Rb6 {[%clk 0:00:31.9]} 51...
Kf7 {[%clk 0:00:31.2]} 52. Rc6 {[%clk 0:00:32.2]} 52... c4 {[%clk 0:00:32.5]}
53. Rc7+ {[%clk 0:00:33]} 53... Kg8 {[%clk 0:00:33]} 54. Rc6 {[%clk 0:00:34.1]}
54... Kf7 {[%clk 0:00:33.9]} 55. Rc7+ {[%clk 0:00:35.3]} 55... Kf6 {[%clk
0:00:35.3]} 56. Rc6+ {[%clk 0:00:36.1]} 56... Kf7 {[%clk 0:00:36.7]} 57. Rc7+
{[%clk 0:00:36.4]} 57... Kf6 {[%clk 0:00:37.5]} 58. Rc6+ {[%clk 0:00:37.5]}
58... Kf7 {[%clk 0:00:38.7]} 59. Rc7+ {[%clk 0:00:38.5]} 1/2-1/2

[Event "*** MasterClass Titled Tuesday Blitz"]
[Site "Chess.com"]
[Date "2017.10.03"]
[Round "6"]
[White "Tesla37"]
[Black "Muisback26"]
[Result "0-1"]
[WhiteElo "2675"]
[BlackElo "2705"]
[TimeControl "180+2"]
[EndTime "14:24:39 PDT"]
[Termination "Muisback26 won by resignation"]

1. e4 {[%clk 0:03:01.9]} 1... c5 {[%clk 0:02:59.7]} 2. Nf3 {[%clk 0:03:02.6]}
2... d6 {[%clk 0:03:00.9]} 3. Nc3 {[%clk 0:03:02.7]} 3... Nf6 {[%clk 0:03:01.2]}
4. d4 {[%clk 0:03:03.5]} 4... cxd4 {[%clk 0:03:02.2]} 5. Qxd4 {[%clk 0:03:03.7]}
5... Nc6 {[%clk 0:02:57.6]} 6. Bb5 {[%clk 0:03:03.9]} 6... Bd7 {[%clk
0:02:59.2]} 7. Bxc6 {[%clk 0:03:05.1]} 7... Bxc6 {[%clk 0:03:01.1]} 8. Bg5
{[%clk 0:03:06.4]} 8... e6 {[%clk 0:03:02.5]} 9. Qd3 {[%clk 0:03:07.6]} 9... Be7
{[%clk 0:03:02.4]} 10. O-O-O {[%clk 0:03:08.1]} 10... Qa5 {[%clk 0:03:03]} 11.
h4 {[%clk 0:03:08.4]} 11... O-O {[%clk 0:03:02.5]} 12. Nd4 {[%clk 0:03:08.3]}
12... Rfc8 {[%clk 0:03:02.3]} 13. f4 {[%clk 0:03:08.1]} 13... Be8 {[%clk
0:02:31.7]} 14. f5 {[%clk 0:02:59.7]} 14... Bd7 {[%clk 0:01:55.5]} 15. Nb3
{[%clk 0:02:52.8]} 15... Qe5 {[%clk 0:01:52.7]} 16. Rhf1 {[%clk 0:02:47.8]}
16... Bc6 {[%clk 0:00:25.3]} 17. Rde1 {[%clk 0:02:00.2]} 17... Qh2 {[%clk
0:00:24.9]} 18. Nd4 {[%clk 0:01:11.2]} 18... Bd7 {[%clk 0:00:19]} 19. Nf3 {[%clk
0:01:06.7]} 19... Qxg2 {[%clk 0:00:17.4]} 20. e5 {[%clk 0:01:03.6]} 20... dxe5
{[%clk 0:00:15.8]} 21. Bxf6 {[%clk 0:01:04]} 21... Bxf6 {[%clk 0:00:17]} 22.
Qxd7 {[%clk 0:00:56.5]} 22... e4 {[%clk 0:00:11.9]} 23. fxe6 {[%clk 0:00:56.1]}
23... exf3 {[%clk 0:00:08.2]} 24. Qxf7+ {[%clk 0:00:48]} 24... Kh8 {[%clk
0:00:09]} 25. e7 {[%clk 0:00:49.2]} 25... Re8 {[%clk 0:00:09.3]} 26. Nd5 {[%clk
0:00:49]} 26... f2 {[%clk 0:00:09.2]} 27. Rd1 {[%clk 0:00:47.4]} 27... Bxh4
{[%clk 0:00:09.7]} 28. a4 {[%clk 0:00:42.2]} 28... Rac8 {[%clk 0:00:08.4]} 29.
Kb1 {[%clk 0:00:42.7]} 29... Qg6 {[%clk 0:00:09.4]} 30. Qxg6 {[%clk 0:00:36.7]}
30... hxg6 {[%clk 0:00:11.3]} 31. Rd4 {[%clk 0:00:35.4]} 31... g5 {[%clk
0:00:12.1]} 32. Re4 {[%clk 0:00:36.2]} 32... Kg8 {[%clk 0:00:13.5]} 33. c4
{[%clk 0:00:36.2]} 33... b6 {[%clk 0:00:13]} 34. b3 {[%clk 0:00:36.6]} 34... Rc6
{[%clk 0:00:13.5]} 35. Kc2 {[%clk 0:00:37.3]} 35... Kf7 {[%clk 0:00:14.9]} 36.
Kd3 {[%clk 0:00:38.5]} 36... Rf6 {[%clk 0:00:14.4]} 37. Ke2 {[%clk 0:00:34.4]}
37... Rf5 {[%clk 0:00:12.6]} 38. a5 {[%clk 0:00:34.9]} 38... bxa5 {[%clk
0:00:12.9]} 39. Ra1 {[%clk 0:00:32.4]} 39... g4 {[%clk 0:00:13.3]} 40. Kf1
{[%clk 0:00:29.2]} 40... Bxe7 {[%clk 0:00:12.7]} 41. Rxa5 {[%clk 0:00:28.7]}
41... g3 {[%clk 0:00:13.4]} 42. Ra1 {[%clk 0:00:25.7]} 42... Bf6 {[%clk
0:00:08.5]} 43. Rxa7+ {[%clk 0:00:23.8]} 43... Kg6 {[%clk 0:00:08.5]} 44. Rg4+
{[%clk 0:00:24.8]} 44... Kh5 {[%clk 0:00:09.6]} 45. Rf4 {[%clk 0:00:20.6]} 45...
Re1+ {[%clk 0:00:09.6]} 46. Kg2 {[%clk 0:00:21.6]} 46... Rg1+ {[%clk 0:00:11]}
47. Kh3 {[%clk 0:00:22.4]} 47... f1=Q+ {[%clk 0:00:11.4]} 48. Rxf1 {[%clk
0:00:23.3]} 48... Rfxf1 {[%clk 0:00:13.3]} 49. Nxf6+ {[%clk 0:00:24.1]} 49...
gxf6 {[%clk 0:00:13.9]} 0-1

[Event "*** MasterClass Titled Tuesday Blitz"]
[Site "Chess.com"]
[Date "2017.10.03"]
[Round "6"]
[White "Alexander_Donchenko"]
[Black "SerGo055"]
[Result "1-0"]
[WhiteElo "2576"]
[BlackElo "2416"]
[TimeControl "180+2"]
[EndTime "14:24:42 PDT"]
[Termination "Alexander_Donchenko won by checkmate"]

1. d4 {[%clk 0:03:01.9]} 1... Nf6 {[%clk 0:02:59.8]} 2. c4 {[%clk 0:03:02.9]}
2... c6 {[%clk 0:02:56.4]} 3. Nf3 {[%clk 0:03:02.3]} 3... d5 {[%clk 0:02:57]} 4.
Qc2 {[%clk 0:03:03.5]} 4... Bg4 {[%clk 0:02:56.8]} 5. Ne5 {[%clk 0:03:03.9]}
5... Bh5 {[%clk 0:02:57.6]} 6. cxd5 {[%clk 0:02:59.1]} 6... Nxd5 {[%clk
0:02:47.3]} 7. a3 {[%clk 0:02:57.7]} 7... e6 {[%clk 0:02:47.2]} 8. e4 {[%clk
0:02:58]} 8... Nf6 {[%clk 0:02:43.4]} 9. Be3 {[%clk 0:02:58.3]} 9... Nbd7 {[%clk
0:02:42.6]} 10. Nxd7 {[%clk 0:02:55.4]} 10... Qxd7 {[%clk 0:02:43.1]} 11. f3
{[%clk 0:02:55.6]} 11... Bg6 {[%clk 0:02:41.9]} 12. Bd3 {[%clk 0:02:45]} 12...
Be7 {[%clk 0:02:38.5]} 13. Nc3 {[%clk 0:02:45]} 13... O-O {[%clk 0:02:38.6]} 14.
O-O {[%clk 0:02:45.9]} 14... Rac8 {[%clk 0:02:36.4]} 15. Rfd1 {[%clk 0:02:45.7]}
15... Rfd8 {[%clk 0:02:36.6]} 16. b4 {[%clk 0:02:41.4]} 16... Qc7 {[%clk
0:02:25.8]} 17. Rac1 {[%clk 0:02:30.7]} 17... e5 {[%clk 0:02:10.2]} 18. dxe5
{[%clk 0:02:28.1]} 18... Qxe5 {[%clk 0:02:10.8]} 19. Bxa7 {[%clk 0:02:26.8]}
19... Bd6 {[%clk 0:01:56.5]} 20. g3 {[%clk 0:02:24.4]} 20... c5 {[%clk
0:01:56.8]} 21. Nb5 {[%clk 0:02:20.5]} 21... Bf8 {[%clk 0:01:42.4]} 22. bxc5
{[%clk 0:02:13.2]} 22... Ra8 {[%clk 0:01:27.8]} 23. Bb6 {[%clk 0:02:09.6]} 23...
Rdc8 {[%clk 0:01:24.6]} 24. f4 {[%clk 0:02:03.6]} 24... Qh5 {[%clk 0:01:23.2]}
25. f5 {[%clk 0:02:02.1]} 25... Ra6 {[%clk 0:01:10.1]} 26. Qe2 {[%clk
0:01:49.8]} 26... Qxe2 {[%clk 0:01:07.7]} 27. Bxe2 {[%clk 0:01:51.7]} 27... Bh5
{[%clk 0:01:08.2]} 28. Bxh5 {[%clk 0:01:52.1]} 28... Nxh5 {[%clk 0:01:09.2]} 29.
Nd6 {[%clk 0:01:24.6]} 29... Rb8 {[%clk 0:00:45]} 30. Rc3 {[%clk 0:01:12.7]}
30... Nf6 {[%clk 0:00:43.5]} 31. e5 {[%clk 0:01:12.3]} 31... Ng4 {[%clk
0:00:44]} 32. Re1 {[%clk 0:01:04.1]} 32... f6 {[%clk 0:00:39]} 33. e6 {[%clk
0:00:55.8]} 33... Rxb6 {[%clk 0:00:19.4]} 34. e7 {[%clk 0:00:41.3]} 34... Bxe7
{[%clk 0:00:16.8]} 35. Rxe7 {[%clk 0:00:43.2]} 35... Rb1+ {[%clk 0:00:16.7]} 36.
Kg2 {[%clk 0:00:44.5]} 36... Rb2+ {[%clk 0:00:17.6]} 37. Kf3 {[%clk 0:00:45.9]}
37... Nxh2+ {[%clk 0:00:18]} 38. Ke3 {[%clk 0:00:43.7]} 38... Ng4+ {[%clk
0:00:16.5]} 39. Kd4 {[%clk 0:00:44.1]} 39... Ne5 {[%clk 0:00:16.3]} 40. Kd5
{[%clk 0:00:39.4]} 40... Nc6 {[%clk 0:00:14.5]} 41. Rc7 {[%clk 0:00:20.7]} 41...
Rd2+ {[%clk 0:00:13.3]} 42. Ke4 {[%clk 0:00:19.5]} 42... Ne5 {[%clk 0:00:12.5]}
43. Rxb7 {[%clk 0:00:18.7]} 43... Ra8 {[%clk 0:00:13.2]} 44. c6 {[%clk
0:00:18.2]} 44... Ra4+ {[%clk 0:00:10.9]} 45. Rb4 {[%clk 0:00:19.1]} 45... Rxb4+
{[%clk 0:00:11.3]} 46. axb4 {[%clk 0:00:21]} 46... Rxd6 {[%clk 0:00:12.3]} 47.
c7 {[%clk 0:00:22.3]} 47... g6 {[%clk 0:00:07.5]} 48. c8=Q+ {[%clk 0:00:23.2]}
48... Kg7 {[%clk 0:00:09.1]} 49. fxg6 {[%clk 0:00:22.4]} 49... Kxg6 {[%clk
0:00:08]} 50. Qg8+ {[%clk 0:00:22.1]} 50... Kh5 {[%clk 0:00:08.2]} 51. Qxh7+
{[%clk 0:00:22.6]} 51... Kg4 {[%clk 0:00:09.8]} 52. Qf5# {[%clk 0:00:22.8]} 1-0

[Event "*** MasterClass Titled Tuesday Blitz"]
[Site "Chess.com"]
[Date "2017.10.03"]
[Round "6"]
[White "Krasimir_Rusev"]
[Black "yosephtaher"]
[Result "0-1"]
[WhiteElo "2529"]
[BlackElo "2580"]
[TimeControl "180+2"]
[EndTime "14:24:48 PDT"]
[Termination "yosephtaher won by resignation"]

1. d4 {[%clk 0:03:01.9]} 1... Nf6 {[%clk 0:02:59.1]} 2. Nf3 {[%clk 0:03:01.8]}
2... g6 {[%clk 0:02:59]} 3. Bf4 {[%clk 0:03:01.7]} 3... Bg7 {[%clk 0:03:00]} 4.
e3 {[%clk 0:03:03.1]} 4... d6 {[%clk 0:03:00.3]} 5. h3 {[%clk 0:03:04.4]} 5...
O-O {[%clk 0:03:01.2]} 6. Bh2 {[%clk 0:03:03.5]} 6... c5 {[%clk 0:03:01.6]} 7.
c3 {[%clk 0:03:03.6]} 7... b6 {[%clk 0:03:02.1]} 8. Nbd2 {[%clk 0:03:03.6]} 8...
Bb7 {[%clk 0:03:02.8]} 9. Bd3 {[%clk 0:03:04.6]} 9... Nc6 {[%clk 0:03:03.3]} 10.
a3 {[%clk 0:03:03]} 10... Re8 {[%clk 0:03:03.4]} 11. O-O {[%clk 0:03:02.6]}
11... e5 {[%clk 0:03:03]} 12. e4 {[%clk 0:02:13.6]} 12... cxd4 {[%clk
0:02:51.7]} 13. cxd4 {[%clk 0:02:15.5]} 13... exd4 {[%clk 0:02:45.2]} 14. Re1
{[%clk 0:02:16.4]} 14... Ne5 {[%clk 0:02:43.5]} 15. Bb5 {[%clk 0:02:16.8]} 15...
Nxf3+ {[%clk 0:02:38.5]} 16. Qxf3 {[%clk 0:02:15.4]} 16... Re7 {[%clk
0:02:33.8]} 17. Rac1 {[%clk 0:02:01.7]} 17... a6 {[%clk 0:02:28.5]} 18. Bd3
{[%clk 0:02:01]} 18... Re8 {[%clk 0:02:19.9]} 19. Qf4 {[%clk 0:01:59.4]} 19...
Bf8 {[%clk 0:01:43.2]} 20. Nf3 {[%clk 0:01:53.7]} 20... Nh5 {[%clk 0:01:41.1]}
21. Qd2 {[%clk 0:01:53.8]} 21... Bg7 {[%clk 0:01:39.7]} 22. Qb4 {[%clk
0:01:41.4]} 22... Nf6 {[%clk 0:01:35.8]} 23. Nd2 {[%clk 0:01:29.4]} 23... Bh6
{[%clk 0:01:27.7]} 24. Rcd1 {[%clk 0:01:22.7]} 24... a5 {[%clk 0:00:28.2]} 25.
Qxd4 {[%clk 0:01:22.1]} 25... d5 {[%clk 0:00:15.8]} 26. e5 {[%clk 0:01:19.7]}
26... Nd7 {[%clk 0:00:16.5]} 27. Nf3 {[%clk 0:01:18.2]} 27... Nc5 {[%clk
0:00:16.7]} 28. Bb5 {[%clk 0:01:18.9]} 28... Rf8 {[%clk 0:00:16.4]} 29. Bg3
{[%clk 0:01:05.9]} 29... Ne6 {[%clk 0:00:17.3]} 30. Qa4 {[%clk 0:01:03.3]} 30...
Rc8 {[%clk 0:00:16.4]} 31. Bh4 {[%clk 0:00:58.8]} 31... Qc7 {[%clk 0:00:17]} 32.
Bf6 {[%clk 0:00:55.5]} 32... Bg7 {[%clk 0:00:15.6]} 33. Qh4 {[%clk 0:00:56.2]}
33... Qc2 {[%clk 0:00:12.2]} 34. Bxg7 {[%clk 0:00:32.1]} 34... Nxg7 {[%clk
0:00:12.6]} 35. Ng5 {[%clk 0:00:31.7]} 35... h5 {[%clk 0:00:13.1]} 36. Qd4
{[%clk 0:00:28.6]} 36... Qc5 {[%clk 0:00:12.1]} 37. a4 {[%clk 0:00:24.4]} 37...
Qxd4 {[%clk 0:00:12.6]} 38. Rxd4 {[%clk 0:00:26.3]} 38... Ne6 {[%clk 0:00:14]}
39. Rd2 {[%clk 0:00:27.2]} 39... Nxg5 {[%clk 0:00:14.8]} 40. Re3 {[%clk
0:00:22.4]} 40... Rc1+ {[%clk 0:00:14.2]} 41. Kh2 {[%clk 0:00:23]} 41... Ne6
{[%clk 0:00:15.7]} 42. Bd7 {[%clk 0:00:21.2]} 42... Rd8 {[%clk 0:00:15]} 43.
Bxe6 {[%clk 0:00:21.6]} 43... fxe6 {[%clk 0:00:16.9]} 44. Rg3 {[%clk 0:00:23.5]}
44... Kg7 {[%clk 0:00:17.4]} 45. Rd4 {[%clk 0:00:25]} 45... Rf8 {[%clk
0:00:17.9]} 46. f3 {[%clk 0:00:24.9]} 46... Rc2 {[%clk 0:00:18.9]} 47. b4 {[%clk
0:00:25.7]} 47... Rc4 {[%clk 0:00:14.7]} 48. Rd2 {[%clk 0:00:19.8]} 48... axb4
{[%clk 0:00:15.2]} 49. Rb2 {[%clk 0:00:19.6]} 49... Bc6 {[%clk 0:00:15.9]} 0-1

[Event "*** MasterClass Titled Tuesday Blitz"]
[Site "Chess.com"]
[Date "2017.10.03"]
[Round "6"]
[White "Paralinch"]
[Black "ArnaudovP"]
[Result "1/2-1/2"]
[WhiteElo "2679"]
[BlackElo "2481"]
[TimeControl "180+2"]
[EndTime "14:24:49 PDT"]
[Termination "Game drawn - insufficient material"]

1. e4 {[%clk 0:03:01.9]} 1... e5 {[%clk 0:02:58.5]} 2. Nf3 {[%clk 0:03:02.7]}
2... Nc6 {[%clk 0:02:59.5]} 3. Nc3 {[%clk 0:03:03.7]} 3... Nf6 {[%clk
0:02:59.6]} 4. a3 {[%clk 0:03:05.2]} 4... g6 {[%clk 0:02:53.6]} 5. Bc4 {[%clk
0:03:02.4]} 5... Bg7 {[%clk 0:02:54.3]} 6. d3 {[%clk 0:03:03.8]} 6... O-O {[%clk
0:02:54.9]} 7. Bg5 {[%clk 0:03:02.8]} 7... h6 {[%clk 0:02:55.1]} 8. Be3 {[%clk
0:03:04]} 8... d6 {[%clk 0:02:54.2]} 9. h3 {[%clk 0:03:04.8]} 9... Be6 {[%clk
0:02:54.4]} 10. Qd2 {[%clk 0:03:06.2]} 10... Bxc4 {[%clk 0:02:53.8]} 11. dxc4
{[%clk 0:03:07]} 11... Kh7 {[%clk 0:02:55.3]} 12. O-O-O {[%clk 0:03:06.8]} 12...
a6 {[%clk 0:02:46.3]} 13. g4 {[%clk 0:03:08]} 13... Nd7 {[%clk 0:02:44.4]} 14.
h4 {[%clk 0:03:05.9]} 14... Rb8 {[%clk 0:02:31.1]} 15. h5 {[%clk 0:03:06.9]}
15... g5 {[%clk 0:02:31.6]} 16. Nxg5+ {[%clk 0:03:03.2]} 16... hxg5 {[%clk
0:02:31]} 17. h6 {[%clk 0:02:55.4]} 17... Bf6 {[%clk 0:02:24.5]} 18. Nd5 {[%clk
0:02:56.8]} 18... Rg8 {[%clk 0:02:24.1]} 19. Rh5 {[%clk 0:02:58.3]} 19... Nd4
{[%clk 0:02:21.4]} 20. Kb1 {[%clk 0:02:43.7]} 20... b5 {[%clk 0:02:09.8]} 21. c3
{[%clk 0:02:24.5]} 21... Ne6 {[%clk 0:02:05.6]} 22. cxb5 {[%clk 0:02:20.5]}
22... axb5 {[%clk 0:02:06.1]} 23. Qe2 {[%clk 0:02:12.4]} 23... Ndc5 {[%clk
0:01:59.9]} 24. Qf3 {[%clk 0:02:10.5]} 24... Rg6 {[%clk 0:01:57]} 25. Qf5 {[%clk
0:02:07.1]} 25... Nd7 {[%clk 0:01:40.9]} 26. Bxg5 {[%clk 0:01:31.8]} 26... Nxg5
{[%clk 0:00:59.2]} 27. Rxg5 {[%clk 0:01:31.1]} 27... Bxg5 {[%clk 0:00:30.9]} 28.
Qxf7+ {[%clk 0:01:32.1]} 28... Kxh6 {[%clk 0:00:19.7]} 29. f4 {[%clk 0:01:32.7]}
29... exf4 {[%clk 0:00:18.9]} 30. Nxf4 {[%clk 0:01:33.5]} 30... Ne5 {[%clk
0:00:16.6]} 31. Rh1+ {[%clk 0:01:09.9]} 31... Bh4 {[%clk 0:00:17.6]} 32. Qf5
{[%clk 0:01:11.5]} 32... Qg5 {[%clk 0:00:18.4]} 33. Nxg6 {[%clk 0:01:10.6]}
33... Qxf5 {[%clk 0:00:18.5]} 34. gxf5 {[%clk 0:01:00]} 34... Nxg6 {[%clk
0:00:19.3]} 35. fxg6 {[%clk 0:01:01.9]} 35... Kg5 {[%clk 0:00:20.6]} 36. Kc2
{[%clk 0:00:55.9]} 36... Rg8 {[%clk 0:00:20.9]} 37. Rf1 {[%clk 0:00:46.5]} 37...
Rxg6 {[%clk 0:00:20.9]} 38. Rf5+ {[%clk 0:00:47]} 38... Kg4 {[%clk 0:00:21.4]}
39. Rxb5 {[%clk 0:00:48]} 39... Bg3 {[%clk 0:00:22.6]} 40. a4 {[%clk 0:00:46.4]}
40... Be5 {[%clk 0:00:23.7]} 41. a5 {[%clk 0:00:47.7]} 41... c6 {[%clk
0:00:24.5]} 42. Rb6 {[%clk 0:00:47]} 42... Rg7 {[%clk 0:00:24.7]} 43. Rxc6
{[%clk 0:00:46.7]} 43... Kf4 {[%clk 0:00:26.1]} 44. Kd3 {[%clk 0:00:37.5]} 44...
Rg3+ {[%clk 0:00:26.3]} 45. Kc4 {[%clk 0:00:38.7]} 45... Kxe4 {[%clk 0:00:27.2]}
46. a6 {[%clk 0:00:37.7]} 46... d5+ {[%clk 0:00:28.5]} 47. Kb5 {[%clk
0:00:36.8]} 47... Rg2 {[%clk 0:00:29.6]} 48. b4 {[%clk 0:00:32.8]} 48... Ra2
{[%clk 0:00:30.4]} 49. Kb6 {[%clk 0:00:32.2]} 49... Kd3 {[%clk 0:00:31]} 50. Kb7
{[%clk 0:00:19.8]} 50... Bxc3 {[%clk 0:00:30.2]} 51. b5 {[%clk 0:00:21.3]} 51...
Bd4 {[%clk 0:00:30.8]} 52. b6 {[%clk 0:00:22.8]} 52... Bxb6 {[%clk 0:00:31.7]}
53. Rxb6 {[%clk 0:00:24.3]} 53... d4 {[%clk 0:00:32.9]} 54. a7 {[%clk
0:00:24.7]} 54... Rxa7+ {[%clk 0:00:33.9]} 55. Kxa7 {[%clk 0:00:26]} 55... Ke2
{[%clk 0:00:35.3]} 56. Re6+ {[%clk 0:00:26.8]} 56... Kf2 {[%clk 0:00:36.4]} 57.
Rd6 {[%clk 0:00:26.9]} 57... Ke3 {[%clk 0:00:37.1]} 58. Kb6 {[%clk 0:00:28.3]}
58... d3 {[%clk 0:00:38.5]} 59. Kc5 {[%clk 0:00:29.9]} 59... d2 {[%clk
0:00:39.8]} 60. Kc4 {[%clk 0:00:31.4]} 60... Ke2 {[%clk 0:00:41.1]} 61. Re6+
{[%clk 0:00:32.9]} 61... Kf1 {[%clk 0:00:42.1]} 62. Rd6 {[%clk 0:00:34.1]} 62...
Ke2 {[%clk 0:00:43.2]} 63. Rxd2+ {[%clk 0:00:35.6]} 63... Kxd2 {[%clk
0:00:44.3]} 1/2-1/2